Cogmind - Beta 17 @@@ ROGUE MODE // 2026.08.18 @ 00:33:23 Player: Bobm Result: Self-destructed Performance ------------- Evolutions (1) 500 Regions Visited (4) 800 Robots Destroyed (13) 65 Value Destroyed (305) 305 Prototype IDs (0) 0 Alien Tech Used (0) 0 Bonus (0) 0 TOTAL SCORE: 1670 Bonus ------- None Cogmind --------- Core Integrity 151/400 Matter 54/300 Energy 99/100 System Corruption 10% Temperature Cool (0) Movement Core (50) Location -9/Exiles Parts ------- > --- POWER (1) -------- (None) > --- PROPULSION (3) --- (None) > --- UTILITY (3) ------ (None) > --- WEAPON (2) ------- (None) > --- INVENTORY (5) ---- Sensor Array Peak State ------------ > --- POWER ------------ Light Ion Engine > --- PROPULSION ------- Hover Unit Hover Unit Hover Unit > --- UTILITY ---------- Small Storage Unit Targeting Computer Hardened Light Armor Plating > --- WEAPON ----------- Light Cannon Grenade Launcher > --- INVENTORY -------- Compact Wheel Sensor Array Light Cannon Light Cannon Light Cannon [Rating: 10] Favorites ----------- Power Ion Engine Engine Ion Engine Propulsion Aluminum Leg Leg Aluminum Leg Wheel Compact Wheel Hover Unit Hover Unit Utility Small Storage Unit Storage Small Storage Unit Processor Targeting Computer Protection Hardened Light Armor Plating Weapon Light Cannon Energy Gun Small Laser Ballistic Gun Light Assault Rifle Ballistic Cannon Light Cannon Launcher Grenade Launcher Build | -11 -10 -9 -9 -9 ------- Run | Yrd Mat Mat Min Exi Slots Evolved 2 | . . 2 . . Power . | . . . . . Propulsion 1 | . . 1 . . Utility 1 | . . 1 . . Weapon . | . . . . . Parts Attached 21 | 6 5 5 5 . Power 3 | 1 . 1 1 . Engine 3 | 1 . 1 1 . Core . | . . . . . Reactor . | . . . . . Propulsion 8 | 2 2 1 3 . Treads . | . . . . . Leg 2 | 2 . . . . Wheel 3 | . . . 3 . Hover 3 | . 2 1 . . Flight . | . . . . . Utility 3 | 1 1 1 . . Device . | . . . . . Storage 1 | 1 . . . . Processor 1 | . 1 . . . Hackware . | . . . . . Protection 1 | . . 1 . . Artifact . | . . . . . Weapon 7 | 2 2 2 1 . Energy Gun 1 | 1 . . . . Energy Cannon . | . . . . . Ballistic Gun 1 | 1 . . . . Ballistic Cannon 4 | . 2 1 1 . Launcher 1 | . . 1 . . Special Weapon . | . . . . . Impact Weapon . | . . . . . Slashing Weapon . | . . . . . Piercing Weapon . | . . . . . Special Melee Weapon . | . . . . . Unidentified Prototypes . | . . . . . Parts Lost 13 | . . 2 11 . Power 3 | . . 1 2 . Propulsion 3 | . . 1 2 . Utility 2 | . . . 2 . Weapon 5 | . . . 5 . Highest Loss Streak 11 | . . 1 11 . To Critical Strikes . | . . . . . Average Backups 5 | 2 5 7 3 1 Power . | 1 1 . . . Propulsion 1 | 1 1 2 . . Utility . | . . 1 1 1 Weapon 2 | . 2 3 2 . Tool/Special . | . . . . . Unused Backups 4 | . 3 . . 1 Power . | . . . . . Propulsion 2 | . 2 . . . Utility 1 | . . . . 1 Weapon 1 | . 1 . . . Tool/Special . | . . . . . Average Slot Usage (%) 86 | . 91 92 66 . Engine 11 | . 14 10 6 . Leg 15 | . 26 . . . Wheel 2 | . . . 18 . Hover 8 | . . 28 1 . Storage 12 | . 14 11 9 . Processor 8 | . 7 11 4 . Protection 3 | . . 9 7 . Energy Gun 3 | . 5 . . . Ballistic Gun 3 | . 5 . . . Ballistic Cannon 17 | . 17 20 16 . Peak Build Rating 10 | 6 7 10 10 . Average Rating 6 | 3 6 9 6 . On Entrance 4 | . 6 7 9 . Avg Prop Armor Cover (%) . | . . . . . Naked Turns 32 | . . . 19 13 Heaviest Build 19 | 12 16 19 19 . Greatest Support 48 | 20 20 18 48 3 Greatest Overweight (x) 5 | . 5 1 . . Average Overweight (x) . | . . . . . Largest Inventory Capacity 8 | 8 8 8 8 5 Average Capacity 7 | 6 8 8 7 5 Most Carried 8 | 5 8 8 7 1 Average Carried 5 | 2 5 7 3 1 Final Capacity 8 | 8 8 8 5 5 Final Carried 8 | 3 7 8 1 1 Class Distribution -------------------- 100% | Mutant Dominant Class ---------------- Mutant | -10/Materials Mutant | -9/Materials Mutant | -9/Mines Mutant | -9/Exiles Resources | -11 -10 -9 -9 -9 ----------- Run | Yrd Mat Mat Min Exi Matter Collected 458 | 183 116 113 46 . Remotely . | . . . . . Salvage Created 249 | . 119 96 34 . Parts 22 | . 8 9 5 . Haulers Intercepted . | . . . . . Recyclers Shooed . | . . . . . Parts Field Recycled . | . . . . . Retrieved Matter . | . . . . . Parts Self-Destructed . | . . . . . Prevented . | . . . . . Parts Restored . | . . . . . Kills | -11 -10 -9 -9 -9 ------- Run | Yrd Mat Mat Min Exi Combat Hostiles Destroyed 11 | . 3 4 4 . Guns 1 | . 1 . . . Cannons 5 | . 2 2 1 . AOE 5 | . . 2 3 . Classes Destroyed 6 | . 2 3 1 . Recycler 1 | . . 1 . . Operator 1 | . 1 . . . Swarmer 6 | . . 3 3 . Grunt 3 | . 3 . . . Sentry 1 | . . 1 . . Demolisher 1 | . . . 1 . Best Kill Streak 4 | . 1 3 4 . Combat Bots Only 4 | . 1 3 4 . Max Kills in Single Turn 2 | . 1 1 2 . Gunslinging . | . . . . . Exploded 2 | . . 1 2 . Melee . | . . . . . Uniques/NPCs Destroyed . | . . . . . Combat | -11 -10 -9 -9 -9 -------- Run | Yrd Mat Mat Min Exi Hostile Shots Fired 92 | . 18 22 52 . Missed 27 | . 8 7 12 . Hits 65 | . 10 15 40 . Melee 3 | . . . 3 . Projectile 62 | . 10 15 37 . AOE 18 | . . . 18 . Damage Taken 1474 | . 151 258 1065 . Core 259 | . 10 13 236 . Absorbed by Shields . | . . . . . Core Remaining (%) 98 | 100 96 . . . Volleys Fired 45 | . 18 13 14 . Largest 2 | . 2 2 2 . Hottest 60 | . 60 60 60 . Shots Fired 86 | . 36 25 25 . Gun 22 | . 22 . . . Cannon 55 | . 14 21 20 . Launcher 9 | . . 4 5 . Special . | . . . . . Kinetic 66 | . 25 21 20 . Thermal 11 | . 11 . . . Explosive 9 | . . 4 5 . Electromagnetic . | . . . . . Robot Hit Streak 8 | . 8 3 5 . Robot Miss Streak 6 | . 4 5 6 . Penetration Max . | . . . . . Secondary Targets . | . . . . . Shots Hit Robots 46 | . 23 10 13 . Core Hits 26 | . 9 9 8 . Critical Kills . | . . . . . Critical Parts Destroyed . | . . . . . Critical Strikes 2 | . . . 2 . Blast 2 | . . . 2 . Melee Attacks . | . . . . . Impact . | . . . . . Slashing . | . . . . . Piercing . | . . . . . Sneak Attacks . | . . . . . Combat Hostiles . | . . . . . Follow-up Attacks . | . . . . . Damage Inflicted 838 | . 260 259 319 . Guns 148 | . 148 . . . Cannons 465 | . 108 173 184 . Explosions 211 | . . 76 135 . Melee . | . . . . . Ramming 14 | . 4 10 . . Kinetic 514 | . 157 173 184 . Thermal 99 | . 99 . . . Explosive 211 | . . 76 135 . Electromagnetic . | . . . . . Impact . | . . . . . Slashing . | . . . . . Piercing . | . . . . . Highest Corruption 10 | . . 6 10 10 Average Corruption 5 | . . 3 6 10 Corruption Purged . | . . . . . Corruption Blocked . | . . . . . Effects 11 | . . 3 7 1 Message Errors 1 | . . . . 1 Matter Fused 3 | . . . 3 . Heat Flow Errors 3 | . . 2 1 . Parts Rejected 1 | . . . 1 . Data Loss (minor) 1 | . . 1 . . Weapon Failures 2 | . . . 2 . Overload Shots . | . . . . . Overflow Damage 19 | . . 14 5 . Projectiles . | . . . . . Explosions 19 | . . 14 5 . Melee . | . . . . . Knockbacks 8 | . 3 1 4 . Impact . | . . . . . Kinetic 8 | . 3 1 4 . Secondary . | . . . . . Self-Inflicted Damage 116 | . . 66 50 . Shots 4 | . . 2 2 . Rammed 2 | . . 2 . . Targets Rammed 3 | . 1 2 . . Kicked 1 | . 1 . . . Crushed . | . . . . . Highest Temperature 241 | . 94 217 241 . Average Temperature 62 | . 33 66 95 . Received Heat Transfer 111 | . 84 27 . . Siege Activations . | . . . . . Martial Activations . | . . . . . Shielding Activations . | . . . . . Robots Disrupted . | . . . . . Combat Hostiles . | . . . . . Robots Corrupted . | . . . . . Combat Hostiles . | . . . . . Parts Fried . | . . . . . Impact Corruptions . | . . . . . Robots Melted . | . . . . . Combat Hostiles . | . . . . . Parts Melted . | . . . . . Heat Transferred 225 | . 225 . . . Parts Sabotaged . | . . . . . Parts Stolen . | . . . . . Parts Stripped . | . . . . . Power Chain Reactions . | . . . . . Alert | -11 -10 -9 -9 -9 ------- Run | Yrd Mat Mat Min Exi Maximum Alert Level . | . . . . . Low Security (%) 100 | 100 100 100 100 . Level 1 . | . . . . . Level 2 . | . . . . . Level 3 . | . . . . . Level 4 . | . . . . . Level 5 . | . . . . . High Security . | . . . . . Max Security . | . . . . . Peak Influence 97 | . 45 76 97 . Initial 7 | . . . 7 . Average 20 | . 7 49 25 . Influence Increases 424 | . 127 161 136 . Destroy 0b10 Robot/C 220 | . 60 80 80 . Destroy 0b10 Robot/NC 10 | . 5 5 . . Destroy Leader 70 | . 30 20 20 . Disable Machine 15 | . . 15 . . Destroy Structure 64 | . 2 26 36 . Lose Combat Pursuer 45 | . 30 15 . . Influence Decreases 424 | . 127 140 157 . Entered New Map 14 | . . . 14 . Time Decay 284 | . 127 120 37 . Lost Part 126 | . . 20 106 . Squads Dispatched 2 | . 2 . . . Investigation . | . . . . . Extermination . | . . . . . Reinforcement 2 | . 2 . . . Assault . | . . . . . Garrison . | . . . . . Intercept . | . . . . . Searches Triggered . | . . . . . Construction Impeded . | . . . . . Haulers Reinforced . | . . . . . Active Scanning Responses . | . . . . . Cargo Convoy Interrupts . | . . . . . Stealth | -11 -10 -9 -9 -9 --------- Run | Yrd Mat Mat Min Exi Distress Signals . | . . . . . Communications Jammed . | . . . . . Distress Signals . | . . . . . Times Spotted 26 | . 7 8 11 . Peak Tracking Total 6 | . 3 4 6 . Tactical Retreats 3 | . 2 1 . . Traps | -11 -10 -9 -9 -9 ------- Run | Yrd Mat Mat Min Exi Traps Triggered 4 | . . 4 . . Indirectly . | . . . . . Trap Hack Attempts . | . . . . . Triggered . | . . . . . Disarmed . | . . . . . Reprogrammed . | . . . . . Reused . | . . . . . Traps Extracted . | . . . . . Installed . | . . . . . Triggered . | . . . . . Machines | -11 -10 -9 -9 -9 ---------- Run | Yrd Mat Mat Min Exi Machines Disabled 1 | . . 1 . . Max in Single Turn 1 | . . 1 . . Machines Repaired . | . . . . . Machines Dismantled . | . . . . . Machines Sabotaged . | . . . . . Overloaded Fab Kills . | . . . . . Hacking | -11 -10 -9 -9 -9 --------- Run | Yrd Mat Mat Min Exi Machines Accessed 1 | . 1 . . . Terminals . | . . . . . Fabricators . | . . . . . Repair Stations . | . . . . . Recycling Units 1 | . 1 . . . Scanalyzers . | . . . . . Garrison Access . | . . . . . Total Hacks 2 | . 2 . . . Successful 1 | . 1 . . . Failed 1 | . 1 . . . Catastrophic . | . . . . . Database Lockouts . | . . . . . Manual . | . . . . . Terminals . | . . . . . Fabricators . | . . . . . Repair Stations . | . . . . . Recycling Units 2 | . 2 . . . Scanalyzers . | . . . . . Garrison Access . | . . . . . Terminal Hacks . | . . . . . Fabricator Hacks . | . . . . . Repair Station Hacks . | . . . . . Recycling Unit Hacks 1 | . 1 . . . Retrieve Components 1 | . 1 . . . Scanalyzer . | . . . . . Garrison Access Hacks . | . . . . . Unauthorized Hacks . | . . . . . Terminals . | . . . . . Fabricators . | . . . . . Repair Stations . | . . . . . Recycling Units . | . . . . . Scanalyzers . | . . . . . Garrison Access . | . . . . . Data Cores Recovered . | . . . . . Used . | . . . . . Hacking Detections . | . . . . . Full Trace Events . | . . . . . Feedback Events . | . . . . . Feedback Blocked . | . . . . . Robot Schematics Acquired . | . . . . . Robots Built . | . . . . . Authchips . | . . . . . Time . | . . . . . Total Robot Build Rating . | . . . . . Part Schematics Acquired . | . . . . . Parts Built . | . . . . . Authchips . | . . . . . Time . | . . . . . Total Part Build Rating . | . . . . . Part Studies Acquired . | . . . . . Parts Repaired . | . . . . . Time . | . . . . . Parts Recycled . | . . . . . Recycled Matter . | . . . . . Retrieved Matter . | . . . . . Retrieved Components 3 | . 3 . . . Parts Scanalyzed . | . . . . . Part Schematics Acquired . | . . . . . Parts Damaged . | . . . . . Bothacking | -11 -10 -9 -9 -9 ------------ Run | Yrd Mat Mat Min Exi Used RIF Installer . | . . . . . Robots Hacked . | . . . . . Non-combat . | . . . . . Combat . | . . . . . Robot Hacks Applied . | . . . . . Relay Couplers Released . | . . . . . Fabnet Peak Effective % . | . . . . . Robots Rewired . | . . . . . Allies Hacked . | . . . . . Hacks Repelled . | . . . . . Allies | -11 -10 -9 -9 -9 -------- Run | Yrd Mat Mat Min Exi Total Allies . | . . . . . Largest Group . | . . . . . Highest-Rated Group . | . . . . . Highest-Rated Ally . | . . . . . Total Orders . | . . . . . Ally Attacks . | . . . . . Total Damage . | . . . . . Kills . | . . . . . Allies Corrupted . | . . . . . Allies Melted . | . . . . . Intel | -11 -10 -9 -9 -9 ------- Run | Yrd Mat Mat Min Exi Active Infowar (turns) . | . . . . . Robot Analysis Total . | . . . . . Derelict Logs Recovered . | . . . . . Drone Launches . | . . . . . Drone Recoveries . | . . . . . Exploration | -11 -10 -9 -9 -9 ------------- Run | Yrd Mat Mat Min Exi Turns Passed 1034 | 56 576 259 130 13 Spaces Moved 712 | 40 378 177 92 25 Core 80 | 9 9 . 37 25 Treads . | . . . . . Legs 392 | 31 361 . . . Wheels 55 | . . . 55 . Hover 185 | . 8 177 . . Flight . | . . . . . Fastest Speed 50 | 50 116 52 50 50 Average Speed 110 | 104 124 105 79 50 Slowest Speed 300 | 120 300 116 100 50 Overloaded Moves . | . . . . . Propulsion Burnouts . | . . . . . Robots Hopped . | . . . . . Potential Cave-ins . | . . . . . Cave-ins Triggered . | . . . . . Exploration Rate (%) 22 | 3 45 19 35 9 Regions Visited 4 Branch Regions 2 Pre-discovered Areas . | . . . . . Known Exits Taken . | . . . . . Unknown Exits Taken 4 | 1 1 1 1 . Scrap Searched 1 | . . . 1 . Spaces Dug . | . . . . . Terrain Destroyed 67 | . . 25 42 . Melee . | . . . . . Projectile 1 | . . . 1 . AOE 66 | . . 25 41 . Terrain Rammed . | . . . . . Walls Destroyed . | . . . . . Machines Disabled . | . . . . . Actions | -11 -10 -9 -9 -9 --------- Run | Yrd Mat Mat Min Exi Total 876 | 54 454 223 120 25 Wait 61 | . 34 23 4 . Move 708 | 39 377 176 91 25 Hop . | . . . . . Pick Up 25 | 9 12 4 . . Fast Attach . | . . . . . Attach 19 | 6 5 3 5 . Detach . | . . . . . Swap 5 | . . 2 3 . Drop 10 | . 7 . 3 . Fire 45 | . 18 13 14 . Melee . | . . . . . Ram 2 | . . 2 . . Kick 1 | . 1 . . . Crush . | . . . . . Escape Stasis . | . . . . . Rewire . | . . . . . Trap . | . . . . . Miscellaneous . | . . . . . Route ------- -11/Scrapyard -10/Materials (discovered 2 exits: [*Mat] / [*Min]) -9/Materials -9/Mines -9/Exiles History --------- Turn | Location | Event 14 | -11/Scrapyard | Discovered new exit (range 15) 57 | -11/Scrapyard | Entered Materials 117 | -10/Materials | Discovered new exit (range 8) 302 | -10/Materials | Build established: Mutant 419 | -10/Materials | Discovered new exit (range 13) 633 | -10/Materials | Entered another Materials area 633 | -9/Materials | Evolved 2 slots: Propulsion x1, Utility x1 720 | -9/Materials | Discovered new exit (range 11) 892 | -9/Materials | Entered Mines 893 | -9/Mines | Assembled infested the area 898 | -9/Mines | Assisted by a Guerilla fighting off Assembled 909 | -9/Mines | Met a Derelict testing a Signal Generator 1002 | -9/Mines | Core integrity fell below 50% 1004 | -9/Mines | System corruption reached 10% 1019 | -9/Mines | Deemed a non-threat by the Exiles lab entrance 1020 | -9/Mines | Discovered new exit (range 5) 1022 | -9/Mines | Entered Exiles 1034 | -9/Exiles | Lost 11 parts (2p2n2u5w) 1035 | -9/Exiles | Met 8R-AWN 1035 | -9/Exiles | Self-destructed Last Messages --------------- The unstable cave ceiling collapses. D-53 Grenadier destroyed. Lgt. Cannon destroyed. System corrupted by crushing effect (+4). Knocked back. Dropped Sml. Storage Unit. The unstable cave ceiling collapses. Acquired 6 matter. The unstable cave ceiling collapses. System corrupted: Matter fused (-7). K-01 Serf collects debris. "No threat detected, you may enter." EXIT=FOUND LOCATION=UNKNOWN GOAL=ESCAPE 51PH|FKKTZNFPJXLKBX,N%CJ XRNV 8R-AWN: Oh you look... interesting. The Exiles will probably want to check you out. Keep your grabby things to yourself, though. I've got my sensors on you. Map ----- +----------------------------------------------------+ | ?????????????????????????????????????????????????? | | ?????????????????????????????????????????????????? | | ?????????????????????????????????????????????????? | | ?????????????????????????????????????????????????? | | ?????????????????????????????????????????????????? | | ?????????????????????????????????????????????????? | | ?????????????????????????????????????????????????? | | ?????????????????????????????????????????????????? | | ?????????????????????????????????????????????????? | | ?????????????????????????????????????????????????? | | ?????????????????????????????????????????????????? | | ?????????????????????????????????????????????????? | | ?????????????????????????????????????????????????? | | ?????????????????????????????????????????????????? | | ?????????????????????????????????????# ????????? | | ????????????????????????????????????# ##??????? | | ???????????????????????????????????# #??????? | | ???????????????????????????????????# #??????? | | ??????????????##??????????????????## ???????? | | ??????????????#" g???????????????## #????????? | | ?????????????##" ??????????????# #????????? | | ???????????### #??????????### #?????????? | | ???????????# ?######### #?????????? | | ???????????# #""""## #??????????? | | ??????????# * ##?????????? | | ?????????????????# @ * #?????????? | | ?????????????????## ##????????? | | ?????????????????#"""""#### ###??????? | | ?????????????????#####????#### * ###????? | | ?????????????????????????????##### ##???? | | ?????????????????????????????????### #???? | | ???????????????????????????????????### #???? | | ?????????????????????????????????????### #???? | | ??????????????????????????????????????#" ##??? | | ??????????????????????????????????????#### ###? | | ?????????????????????????????????????????# ## | | ?????????????????????????????????????????## # | | ??????????????????????????????????????????### | | ????????????????????????????????????????????# | | ????????????????????????????????????????????## # | | ?????????????????????????????????????????????##### | | ?????????????????????????????????????????????????? | | ?????????????????????????????????????????????????? | | ?????????????????????????????????????????????????? | | ?????????????????????????????????????????????????? | | ?????????????????????????????????????????????????? | | ?????????????????????????????????????????????????? | | ?????????????????????????????????????????????????? | | ?????????????????????????????????????????????????? | | ?????????????????????????????????????????????????? | +----------------------------------------------------+ Best States ------------- Heat Dissipation 28 Energy Generation 10 Energy Capacity 250 Matter Stores 269 Matter Capacity 300 Sight Range 16 Terrain Scan Density 10 Armor Coverage 150 Evasion (%) 55 Targeting Accuracy 5 Item Schematics ----------------- None Robot Schematics ------------------ None Fabricated ------------ Nothing Repaired ---------- Nothing Studied --------- None Alien Tech Used ----------------- None Achievements -------------- None Challenges ------------ None Game ------ Seed MobileRapidTelecube Manual? 0 Play Time 00:11:52 Cumulative 6.5 hours Start 2026.08.18 @ 00:21:51 End 2026.08.18 @ 00:33:23 Sessions 1 Manual Loads 0 Difficulty Rogue Special Mode None Game No. 23 Rogue 23 Adventurer 0 Explorer 0 Win Type - Total 0 Types 0/0/0/0/0/0/0/0/0/0 Lore% 6 Gallery% 11 Achievement% 10 Wizard Run 0 Options --------- Layout 1 ASCII 0 Keyboard 0 Movement Numpad Keybinds 0 Fullscreen 1 Font 32/SmallcapsGlow Map View 50x35 Zoom Use 0% Tactical HUD 0 Map Filters NONE Filters NONE Steam 1 RUN: 8603095a-c972-4d87-a4e1-e5c5e8f29aca